Cogmind - Beta 10.2 @@@ ROGUE MODE // 2021.09.29 @ 00:38:30 Player: Ducky.Jr Result: Self-destructed Performance ------------- Evolutions (1) 500 Regions Visited (3) 600 Robots Destroyed (6) 30 Value Destroyed (221) 221 Prototype IDs (0) 0 Alien Tech Used (0) 0 Bonus (200) 200 TOTAL SCORE: 1551 Bonus ------- Pacifist 200 Cogmind --------- Core Integrity 245/400 Matter 290/400 Energy 125/125 System Corruption 0% Temperature Cool (0) Movement Treading (160) Location -9/Mines Parts ------- > --- POWER (2) -------- Light Ion Engine > --- PROPULSION (2) --- Light Treads > --- UTILITY (3) ------ Small Storage Unit Medium Matter Pod Visual Processing Unit > --- WEAPON (2) ------- Hammer Mining Claw > --- INVENTORY (6) ---- Aluminum Leg EM Pulse Gun Beam Rifle Hammer Peak State ------------ > --- POWER ------------ Ion Engine Improved Ion Engine > --- PROPULSION ------- Wheel Wheel > --- UTILITY ---------- Small Storage Unit Light Armor Plating > --- WEAPON ----------- Assault Rifle Mining Claw > --- INVENTORY -------- Light Treads Aluminum Leg EM Pulse Gun Hammer Hammer [Rating: 9] Favorites ----------- Power Ion Engine Engine Ion Engine Propulsion Wheel Treads Light Treads Wheel Wheel Utility Small Storage Unit Storage Small Storage Unit Processor Visual Processing Unit Protection Light Armor Plating Weapon Mining Claw Energy Gun EM Pulse Gun Ballistic Gun Assault Rifle Impact Weapon Hammer Slashing Weapon Mining Claw Build | -11 -10 -9 -9 ------- Run | Scr Mat Mat Min Slots Evolved 2 | . . 2 . Power 1 | . . 1 . Propulsion . | . . . . Utility 1 | . . 1 . Weapon . | . . . . Parts Attached 16 | 6 2 8 . Power 4 | 1 . 3 . Engine 4 | 1 . 3 . Core . | . . . . Reactor . | . . . . Propulsion 3 | 2 . 1 . Treads 1 | . . 1 . Leg . | . . . . Wheel 2 | 2 . . . Hover . | . . . . Flight . | . . . . Utility 5 | 1 1 3 . Device . | . . . . Storage 2 | 1 . 1 . Processor 1 | . . 1 . Hackware . | . . . . Protection 2 | . 1 1 . Artifact . | . . . . Weapon 4 | 2 1 1 . Energy Gun 1 | 1 . . . Energy Cannon . | . . . . Ballistic Gun 1 | 1 . . . Ballistic Cannon . | . . . . Launcher . | . . . . Special Weapon . | . . . . Impact Weapon 1 | . . 1 . Slashing Weapon 1 | . 1 . . Piercing Weapon . | . . . . Special Melee Weapon . | . . . . Unidentified Prototypes . | . . . . Parts Lost 5 | . . 5 . Power 2 | . . 2 . Propulsion 1 | . . 1 . Utility 2 | . . 2 . Weapon . | . . . . Highest Loss Streak 3 | . . 3 . Average Slot Usage (%) 83 | . 91 80 77 Engine 18 | . 14 20 11 Treads 3 | . . 4 11 Wheel 14 | . 28 9 . Storage 12 | . 14 11 22 Processor 3 | . . 4 11 Protection 7 | . 7 7 . Energy Gun 1 | . 6 . . Ballistic Gun 6 | . 14 3 . Impact Weapon 5 | . . 7 11 Slashing Weapon 9 | . 6 11 11 Naked Turns . | . . . . Heaviest Build 26 | 13 16 26 13 Greatest Support 20 | 20 20 20 20 Greatest Overweight (x) 2 | . . 2 . Average Overweight (x) . | . . . . Largest Inventory Capacity 6 | 6 6 6 6 Average Capacity 5 | 5 6 6 6 Most Carried 6 | 4 6 6 4 Average Carried 4 | 1 5 4 4 Final Capacity 6 | 6 6 6 6 Final Carried 6 | 3 6 4 4 Class Distribution -------------------- 100% | Mutant Dominant Class ---------------- Mutant | -10/Materials Mutant | -9/Materials Mutant | -9/Mines Resources | -11 -10 -9 -9 ----------- Run | Scr Mat Mat Min Matter Collected 346 | 133 . 213 . Remotely . | . . . . Salvage Created 287 | . . 287 . Parts 14 | . . 14 . Haulers Intercepted . | . . . . Recyclers Shooed . | . . . . Parts Field Recycled . | . . . . Retrieved Matter . | . . . . Parts Self-Destructed . | . . . . Prevented . | . . . . Kills | -11 -10 -9 -9 ------- Run | Scr Mat Mat Min Combat Hostiles Destroyed 5 | . . 5 . Melee 4 | . . 4 . Classes Destroyed 3 | . . 3 . Watcher 1 | . . 1 . Grunt 3 | . . 3 . Sentry 2 | . . 2 . Best Kill Streak 3 | . . 3 . Combat Bots Only 2 | . . 2 . Max Kills in Single Turn 1 | . . 1 . Gunslinging . | . . . . Exploded . | . . . . Melee 1 | . . 1 . Uniques/NPCs Destroyed . | . . . . Combat | -11 -10 -9 -9 -------- Run | Scr Mat Mat Min Damage Taken 798 | . . 798 . Core 155 | . . 155 . Absorbed by Shields . | . . . . Core Remaining (%) 100 | 100 100 . . Volleys Fired 2 | 1 1 . . Largest 2 | 2 1 . . Hottest 60 | 60 20 . . Shots Fired 3 | 2 1 . . Gun 3 | 2 1 . . Cannon . | . . . . Launcher . | . . . . Special . | . . . . Kinetic 2 | 1 1 . . Thermal . | . . . . Explosive . | . . . . Electromagnetic 1 | 1 . . . Robot Hit Streak 1 | 1 . . . Robot Miss Streak 1 | 1 . . . Penetration Max . | . . . . Secondary Targets . | . . . . Shots Hit Robots 25 | 1 . 24 . Core Hits 7 | . . 7 . Critical Hits 1 | . . 1 . Critical Kills . | . . . . Critical Parts Destroyed 1 | . . 1 . Melee Attacks 35 | . 5 30 . Impact 18 | . . 18 . Slashing 17 | . 5 12 . Piercing . | . . . . Sneak Attacks . | . . . . Combat Hostiles . | . . . . Follow-up Attacks 2 | . . 2 . Damage Inflicted 459 | 13 . 446 . Guns 13 | 13 . . . Cannons . | . . . . Explosions . | . . . . Melee 446 | . . 446 . Ramming . | . . . . Kinetic 13 | 13 . . . Thermal . | . . . . Explosive . | . . . . Electromagnetic . | . . . . Impact 257 | . . 257 . Slashing 189 | . . 189 . Piercing . | . . . . Highest Corruption . | . . . . Average Corruption . | . . . . Corruption Purged . | . . . . Overload Shots . | . . . . Overflow Damage 1 | . . 1 . Projectiles . | . . . . Explosions . | . . . . Melee 1 | . . 1 . Knockbacks . | . . . . Impact . | . . . . Kinetic . | . . . . Secondary . | . . . . Self-Inflicted Damage . | . . . . Shots . | . . . . Rammed . | . . . . Targets Rammed . | . . . . Kicked . | . . . . Crushed . | . . . . Highest Temperature 3 | . . 3 . Average Temperature 2 | . . 2 . Received Heat Transfer 360 | . . 360 . Siege Activations . | . . . . Robots Corrupted . | . . . . Combat Hostiles . | . . . . Parts Fried 1 | . . 1 . Impact Corruptions 1 | . . 1 . Robots Melted . | . . . . Combat Hostiles . | . . . . Parts Melted . | . . . . Heat Transferred . | . . . . Parts Sabotaged . | . . . . Parts Stolen . | . . . . Parts Stripped . | . . . . Power Chain Reactions . | . . . . Missiles Intercepted . | . . . . Alert | -11 -10 -9 -9 ------- Run | Scr Mat Mat Min Peak Influence 142 | . . 142 51 Initial 51 | . . . 51 Average 51 | . . 86 51 Maximum Alert Level . | . . . . Low Security (%) 100 | 100 100 100 100 Level 1 . | . . . . Level 2 . | . . . . Level 3 . | . . . . Level 4 . | . . . . Level 5 . | . . . . High Security . | . . . . Max Security . | . . . . Squads Dispatched . | . . . . Investigation . | . . . . Extermination . | . . . . Reinforcement . | . . . . Assault . | . . . . Garrison . | . . . . Intercept . | . . . . Construction Impeded . | . . . . Haulers Reinforced . | . . . . Stealth | -11 -10 -9 -9 --------- Run | Scr Mat Mat Min Distress Signals 3 | . . 3 . Communications Jammed . | . . . . Distress Signals . | . . . . Times Spotted 11 | . . 11 . Peak Tracking Total 6 | . . 6 . Tactical Retreats . | . . . . Traps | -11 -10 -9 -9 ------- Run | Scr Mat Mat Min Traps Triggered . | . . . . Indirectly . | . . . . Trap Hack Attempts . | . . . . Triggered . | . . . . Disarmed . | . . . . Reprogrammed . | . . . . Reused . | . . . . Traps Extracted . | . . . . Installed . | . . . . Triggered . | . . . . Machines | -11 -10 -9 -9 ---------- Run | Scr Mat Mat Min Machines Disabled . | . . . . Max in Single Turn . | . . . . Machines Sabotaged . | . . . . Garrisons Compromised . | . . . . Overloaded Fab Kills . | . . . . Fab Network Shutdowns . | . . . . Hacking | -11 -10 -9 -9 --------- Run | Scr Mat Mat Min Machines Accessed . | . . . . Terminals . | . . . . Fabricators . | . . . . Repair Stations . | . . . . Recycling Units . | . . . . Scanalyzers . | . . . . Garrison Access . | . . . . Total Hacks . | . . . . Successful . | . . . . Failed . | . . . . Catastrophic . | . . . . Database Lockouts . | . . . . Manual . | . . . . Terminals . | . . . . Fabricators . | . . . . Repair Stations . | . . . . Recycling Units . | . . . . Scanalyzers . | . . . . Garrison Access . | . . . . Terminal Hacks . | . . . . Fabricator Hacks . | . . . . Repair Station Hacks . | . . . . Recycling Unit Hacks . | . . . . Scanalyzer . | . . . . Garrison Access Hacks . | . . . . Unauthorized Hacks . | . . . . Terminals . | . . . . Fabricators . | . . . . Repair Stations . | . . . . Recycling Units . | . . . . Scanalyzers . | . . . . Garrison Access . | . . . . Data Cores Recovered . | . . . . Used . | . . . . Hacking Detections . | . . . . Full Trace Events . | . . . . Feedback Events . | . . . . Feedback Blocked . | . . . . Robot Schematics Acquired . | . . . . Robots Built . | . . . . Matter . | . . . . Time . | . . . . Total Robot Build Rating . | . . . . Part Schematics Acquired . | . . . . Parts Built . | . . . . Matter . | . . . . Time . | . . . . Total Part Build Rating . | . . . . Parts Repaired . | . . . . Time . | . . . . Parts Recycled . | . . . . Recycled Matter . | . . . . Retrieved Matter . | . . . . Retrieved Components . | . . . . Parts Scanalyzed . | . . . . Part Schematics Acquired . | . . . . Parts Damaged . | . . . . Bothacking | -11 -10 -9 -9 ------------ Run | Scr Mat Mat Min Used RIF Installer . | . . . . Robots Hacked . | . . . . Non-combat . | . . . . Combat . | . . . . Robot Hacks Applied . | . . . . Relay Couplers Released . | . . . . Robots Rewired . | . . . . Allies Hacked . | . . . . Hacks Repelled . | . . . . Allies | -11 -10 -9 -9 -------- Run | Scr Mat Mat Min Total Allies . | . . . . Largest Group . | . . . . Highest-Rated Group . | . . . . Highest-Rated Ally . | . . . . Total Orders . | . . . . Ally Attacks . | . . . . Total Damage . | . . . . Kills . | . . . . Allies Corrupted . | . . . . Allies Melted . | . . . . Intel | -11 -10 -9 -9 ------- Run | Scr Mat Mat Min Robot Analysis Total . | . . . . Derelict Logs Recovered . | . . . . Drone Launches . | . . . . Drone Recoveries . | . . . . Exploration | -11 -10 -9 -9 ------------- Run | Scr Mat Mat Min Turns Passed 492 | 61 132 290 9 Spaces Moved 355 | 62 134 155 4 Core 23 | 23 . . . Treads 67 | . . 63 4 Legs . | . . . . Wheels 265 | 39 134 92 . Hover . | . . . . Flight . | . . . . Fastest Speed 50 | 50 80 80 160 Average Speed 96 | 68 80 120 160 Slowest Speed 160 | 80 80 160 160 Overloaded Moves . | . . . . Propulsion Burnouts . | . . . . Robots Hopped . | . . . . Cave-ins Triggered . | . . . . Exploration Rate (%) 10 | 3 22 14 2 Regions Visited 3 Branch Regions 1 Pre-discovered Areas . | . . . . Known Exits Taken . | . . . . Unknown Exits Taken 3 | 1 1 1 . Scrap Searched . | . . . . Spaces Dug 4 | . 4 . . Terrain Destroyed 4 | . 4 . . Melee 4 | . 4 . . Projectile . | . . . . AOE . | . . . . Terrain Rammed . | . . . . Walls Destroyed . | . . . . Machines Disabled . | . . . . Actions | -11 -10 -9 -9 --------- Run | Scr Mat Mat Min Total 442 | 77 148 211 6 Wait 23 | 1 1 19 2 Move 352 | 61 133 154 4 Hop . | . . . . Pick Up 13 | 8 5 . . Fast Attach 6 | 1 . 5 . Attach 10 | 5 2 3 . Detach . | . . . . Swap . | . . . . Drop 4 | . 1 3 . Fire 2 | 1 1 . . Melee 32 | . 5 27 . Ram . | . . . . Kick . | . . . . Crush . | . . . . Escape Stasis . | . . . . Rewire . | . . . . Trap . | . . . . Miscellaneous . | . . . . Route ------- -11/Scrapyard -10/Materials -9/Materials -9/Mines History --------- Turn | Location | Event 38 | -11/Scrapyard | Discovered new exit (range 15) 62 | -11/Scrapyard | Entered Materials 120 | -10/Materials | Discovered new exit (range 14) 194 | -10/Materials | Entered another Materials area 194 | -9/Materials | Evolved 2 slots: Power x1, Utility x1 323 | -9/Materials | Build established: Mutant 392 | -9/Materials | Lost 3 parts (1p2u) 452 | -9/Materials | Discovered new exit (range 12) 484 | -9/Materials | Entered Mines 493 | -9/Mines | Self-destructed Last Messages --------------- 00399_ G-47 Trooper destroyed. 00402_ R-06 Scavenger collects Aluminum Leg. 00402_ Acquired 10 matter. 00404_ R-06 Scavenger collects Hover Unit. 00411_ R-06 Scavenger collects Sensor Array. 00412_ R-06 Scavenger collects Wheel. 00416_ R-06 Scavenger collects Heat Sink. 00418_ W-16 Scout sends out distress signal. 00424_ T-07 Excavator is excavating. 00426_ U-05 Engineer lays Concrete. 00438_ K-01 Serf collects debris. 00452_ EXIT=FOUND 00463_ Machine disabled. 00472_ Imp. Ion Engine destroyed. 00478_ Acquired Med. Matter Pod. LOCATION=UNKNOWN GOAL=ESCAPE 00485_ K-01 Serf collects debris. 00493_ Connecting with Terminal... 00493_ Current location identified: Mines Map ----- +----------------------------------------------------+ | | | | | | | | | | | | | | | | | | | | | | | | | | | | | | | | | | | ???????????????????????????????????????????? | | ???????????????????????????????????????????? | | ????????????????????????########???????????? | | ????????????????????????# #???????????? | | ????????????????????????# #???????????? | | ????????????????????????# #???????????? | | ????????????????????????# k #???????????? | | ????????????????????????# k #???????????? | | ????????????????????????#@ #???????????? | | ????????????????????????#T# ####???????????? | | ????????????????????????### #??????????????? | | ??????????????????????????# #??????????????? | | ??????????????????????????# #??????????????? | | ??????????????????????????# ??????????????? | | ??????????????????????????###??????????????? | | ???????????????????????????????????????????? | | ???????????????????????????????????????????? | | ???????????????????????????????????????????? | | ???????????????????????????????????????????? | | ???????????????????????????????????????????? | | ???????????????????????????????????????????? | | ???????????????????????????????????????????? | | ???????????????????????????????????????????? | | ???????????????????????????????????????????? | | ???????????????????????????????????????????? | | ???????????????????????????????????????????? | | ???????????????????????????????????????????? | | ???????????????????????????????????????????? | | ???????????????????????????????????????????? | | ???????????????????????????????????????????? | | ???????????????????????????????????????????? | | ???????????????????????????????????????????? | | ???????????????????????????????????????????? | +----------------------------------------------------+ Best States ------------- Heat Dissipation 28 Energy Generation 17 Energy Capacity 415 Matter Stores 300 Matter Capacity 400 Sight Range 18 Terrain Scan Density 10 Armor Coverage 300 Evasion (%) 50 Recoil Reduction 1 Item Schematics ----------------- None Robot Schematics ------------------ None Fabricated ------------ Nothing Alien Tech Used ----------------- None Achievements -------------- None Challenges ------------ None Game ------ Seed TeslaHelicalReconfigurator Manual? 0 Play Time 00:12:52 Cumulative 4.3 hours Start 2021.09.21 @ 01:16:40 End 2021.09.29 @ 00:38:30 Sessions 3 Manual Loads 0 Difficulty Rogue Special Mode None Game No. 10 Rogue 10 Adventurer 0 Explorer 0 Win Type - Total 0 Types 0/0/0/0/0/0/0/0/0 Lore% 0 Gallery% 9 Achievement% 10 Wizard Run 0 Options --------- ASCII 0 Keyboard 0 Movement Numpad Keybinds 0 Fullscreen 2 Font 18/Terminus Map View 76x50 Tactical HUD 1 Map Filters NONE Filters NONE Steam 1 RUN: 1a89a5b5-db74-4d9d-ab1b-d6c8f3a2ba05